[Event "Early-Titled-Tuesday-Blitz-October-17-2023"]
[Site "Chess.com"]
[Date "2023.10.17"]
[Round "9"]
[White "AradNazari"]
[Black "Sokoloco"]
[Result "1/2-1/2"]
[WhiteElo "2850"]
[BlackElo "2713"]
[TimeControl "180+1"]
[EndTime "9:48:50 PDT"]
[Termination "Game drawn by repetition"]

1. e4 {[%clk 0:03:00.9]} 1... d6 {[%clk 0:02:57]} 2. d4 {[%clk 0:03:00.7]} 2...
g6 {[%clk 0:02:53.5]} 3. Nc3 {[%clk 0:03:01.2]} 3... Bg7 {[%clk 0:02:53.7]} 4.
f4 {[%clk 0:03:02]} 4... Nf6 {[%clk 0:02:31.4]} 5. Nf3 {[%clk 0:03:01.7]} 5...
Bg4 {[%clk 0:02:32]} 6. h3 {[%clk 0:02:43.2]} 6... Bxf3 {[%clk 0:02:28.1]} 7.
Qxf3 {[%clk 0:02:44.1]} 7... Nc6 {[%clk 0:02:20.6]} 8. Be3 {[%clk 0:02:44.4]}
8... e5 {[%clk 0:02:20.7]} 9. fxe5 {[%clk 0:02:34.7]} 9... dxe5 {[%clk
0:02:21.6]} 10. d5 {[%clk 0:02:35.1]} 10... Nd4 {[%clk 0:02:19]} 11. Bb5+ {[%clk
0:02:23]} 11... Nxb5 {[%clk 0:01:48.1]} 12. Nxb5 {[%clk 0:02:23]} 12... c6
{[%clk 0:01:44.1]} 13. dxc6 {[%clk 0:02:19.4]} 13... bxc6 {[%clk 0:01:45]} 14.
Nc3 {[%clk 0:02:03.8]} 14... O-O {[%clk 0:01:45]} 15. O-O {[%clk 0:02:04.1]}
15... Qa5 {[%clk 0:01:35.1]} 16. a3 {[%clk 0:01:57.7]} 16... Nh5 {[%clk
0:01:20.3]} 17. b4 {[%clk 0:01:54.6]} 17... Qc7 {[%clk 0:01:20.9]} 18. Rad1
{[%clk 0:01:51.4]} 18... Rfd8 {[%clk 0:01:13.1]} 19. Ne2 {[%clk 0:01:40.6]}
19... Rxd1 {[%clk 0:01:11.6]} 20. Rxd1 {[%clk 0:01:41.5]} 20... a5 {[%clk
0:01:08]} 21. Bc5 {[%clk 0:01:33.1]} 21... axb4 {[%clk 0:01:03.4]} 22. axb4
{[%clk 0:01:34]} 22... Rd8 {[%clk 0:01:01.2]} 23. Ra1 {[%clk 0:01:31.1]} 23...
Qd7 {[%clk 0:00:39.9]} 24. Nc3 {[%clk 0:00:46.4]} 24... Qe6 {[%clk 0:00:36]} 25.
Rd1 {[%clk 0:00:39.9]} 25... Ra8 {[%clk 0:00:33.9]} 26. Ne2 {[%clk 0:00:35.7]}
26... h6 {[%clk 0:00:23.4]} 27. Qd3 {[%clk 0:00:30.4]} 27... Nf4 {[%clk
0:00:19.8]} 28. Nxf4 {[%clk 0:00:28]} 28... exf4 {[%clk 0:00:20.7]} 29. c4
{[%clk 0:00:26.8]} 29... Ra2 {[%clk 0:00:16.1]} 30. b5 {[%clk 0:00:22.1]} 30...
f3 {[%clk 0:00:15.4]} 31. Qxf3 {[%clk 0:00:17.6]} 31... Qxc4 {[%clk 0:00:15.7]}
32. Bf2 {[%clk 0:00:09.4]} 32... cxb5 {[%clk 0:00:13.2]} 33. e5 {[%clk 0:00:09]}
33... Bxe5 {[%clk 0:00:11.3]} 34. Qe3 {[%clk 0:00:09.5]} 34... Bg7 {[%clk
0:00:09.8]} 35. Qe8+ {[%clk 0:00:09.4]} 35... Kh7 {[%clk 0:00:10.4]} 36. Rf1
{[%clk 0:00:09.5]} 36... Re2 {[%clk 0:00:09.2]} 37. Qd7 {[%clk 0:00:08.9]} 37...
b4 {[%clk 0:00:09]} 38. Bb6 {[%clk 0:00:07.3]} 38... Qe6 {[%clk 0:00:09.2]} 39.
Qb7 {[%clk 0:00:05.1]} 39... Qe7 {[%clk 0:00:06.7]} 40. Rxf7 {[%clk 0:00:04]}
40... Re1+ {[%clk 0:00:04.1]} 41. Kf2 {[%clk 0:00:01.6]} 41... Qe2+ {[%clk
0:00:03.8]} 42. Kg3 {[%clk 0:00:02.3]} 42... Qe5+ {[%clk 0:00:03.9]} 43. Kf2
{[%clk 0:00:02.2]} 43... Qe2+ {[%clk 0:00:02.8]} 44. Kg3 {[%clk 0:00:02.6]}
44... Qe5+ {[%clk 0:00:03.2]} 45. Kf2 {[%clk 0:00:03.3]} 45... Re2+ {[%clk
0:00:03.3]} 46. Kf1 {[%clk 0:00:04]} 46... Re1+ {[%clk 0:00:03.1]} 47. Kf2
{[%clk 0:00:04.3]} 1/2-1/2

[Event "Early-Titled-Tuesday-Blitz-October-17-2023"]
[Site "Chess.com"]
[Date "2023.10.17"]
[Round "9"]
[White "Sadykov_Ramil"]
[Black "Hovik_Hayrapetyan"]
[Result "0-1"]
[WhiteElo "2623"]
[BlackElo "2797"]
[TimeControl "180+1"]
[EndTime "9:48:50 PDT"]
[Termination "Hovik_Hayrapetyan won by resignation"]

1. e4 {[%clk 0:03:00.9]} 1... c5 {[%clk 0:02:35.1]} 2. Nf3 {[%clk 0:03:00.4]}
2... d6 {[%clk 0:02:35]} 3. Bb5+ {[%clk 0:02:59.3]} 3... Nd7 {[%clk 0:02:33.3]}
4. O-O {[%clk 0:02:55.5]} 4... a6 {[%clk 0:02:31.4]} 5. Bxd7+ {[%clk 0:02:55.1]}
5... Bxd7 {[%clk 0:02:30.5]} 6. c4 {[%clk 0:02:54.8]} 6... Bc6 {[%clk
0:02:13.2]} 7. Nc3 {[%clk 0:02:52.9]} 7... Nf6 {[%clk 0:02:13.2]} 8. Qe2 {[%clk
0:02:48.8]} 8... g6 {[%clk 0:02:05.6]} 9. d4 {[%clk 0:02:46.5]} 9... cxd4 {[%clk
0:02:06.5]} 10. Nxd4 {[%clk 0:02:47.3]} 10... Bg7 {[%clk 0:02:02]} 11. Nxc6
{[%clk 0:02:40.9]} 11... bxc6 {[%clk 0:02:02.9]} 12. e5 {[%clk 0:02:40.9]} 12...
dxe5 {[%clk 0:01:57.5]} 13. Qxe5 {[%clk 0:02:39.3]} 13... O-O {[%clk 0:01:57.9]}
14. Qe2 {[%clk 0:02:27]} 14... Qc7 {[%clk 0:01:52.4]} 15. Be3 {[%clk 0:02:23.5]}
15... Rab8 {[%clk 0:01:48.4]} 16. Rac1 {[%clk 0:02:13.5]} 16... Rfd8 {[%clk
0:01:36.8]} 17. b3 {[%clk 0:02:08.8]} 17... Qe5 {[%clk 0:00:43.3]} 18. Qf3
{[%clk 0:02:04.8]} 18... Rd3 {[%clk 0:00:38.4]} 19. Na4 {[%clk 0:01:42.2]} 19...
h5 {[%clk 0:00:20.6]} 20. Bf4 {[%clk 0:01:20.5]} 20... Qf5 {[%clk 0:00:20.2]}
21. Qxd3 {[%clk 0:01:20.5]} 21... Qxd3 {[%clk 0:00:19.9]} 22. Bxb8 {[%clk
0:01:21.2]} 22... Ne4 {[%clk 0:00:16]} 23. Ba7 {[%clk 0:01:05.7]} 23... h4
{[%clk 0:00:15]} 24. Rfd1 {[%clk 0:00:46.3]} 24... Qe2 {[%clk 0:00:14.9]} 25.
Re1 {[%clk 0:00:47]} 25... Qd2 {[%clk 0:00:14.3]} 26. Rcd1 {[%clk 0:00:34.8]}
26... Qc2 {[%clk 0:00:14.4]} 27. h3 {[%clk 0:00:31]} 27... e6 {[%clk 0:00:10.7]}
28. Rd8+ {[%clk 0:00:20.6]} 28... Kh7 {[%clk 0:00:10.2]} 29. Be3 {[%clk
0:00:16.1]} 29... Bf6 {[%clk 0:00:07.8]} 30. Rd7 {[%clk 0:00:16.1]} 30... Kg7
{[%clk 0:00:08.2]} 31. Nc5 {[%clk 0:00:12.1]} 31... Nxc5 {[%clk 0:00:06.6]} 32.
Bxc5 {[%clk 0:00:13]} 32... Qxa2 {[%clk 0:00:05.6]} 33. Rxe6 {[%clk 0:00:12.7]}
33... Qa1+ {[%clk 0:00:04.6]} 34. Kh2 {[%clk 0:00:12.3]} 34... Be5+ {[%clk
0:00:05.2]} 35. g3 {[%clk 0:00:03.5]} 35... hxg3+ {[%clk 0:00:05.8]} 36. fxg3
{[%clk 0:00:04.4]} 36... Qb2+ {[%clk 0:00:06.2]} 37. Kg1 {[%clk 0:00:03.3]}
37... Qc1+ {[%clk 0:00:05.3]} 38. Kg2 {[%clk 0:00:03.7]} 38... Qc2+ {[%clk
0:00:05.8]} 39. Kf3 {[%clk 0:00:03.5]} 39... Qf5+ {[%clk 0:00:05.5]} 40. Kg2
{[%clk 0:00:03.7]} 40... Qxe6 {[%clk 0:00:06.4]} 41. Rd3 {[%clk 0:00:03]} 41...
Qf5 {[%clk 0:00:06.2]} 42. Rf3 {[%clk 0:00:03.5]} 42... Qe4 {[%clk 0:00:06.4]}
43. Bf2 {[%clk 0:00:04]} 43... Bd4 {[%clk 0:00:06.4]} 44. Bxd4+ {[%clk
0:00:02.4]} 44... Qxd4 {[%clk 0:00:07.3]} 45. Rf4 {[%clk 0:00:03.1]} 45... Qb2+
{[%clk 0:00:07.3]} 46. Rf2 {[%clk 0:00:03.5]} 46... Qxb3 {[%clk 0:00:08.2]} 0-1

[Event "Early-Titled-Tuesday-Blitz-October-17-2023"]
[Site "Chess.com"]
[Date "2023.10.17"]
[Round "9"]
[White "Roedor"]
[Black "Ramosha"]
[Result "1/2-1/2"]
[WhiteElo "2446"]
[BlackElo "2633"]
[TimeControl "180+1"]
[EndTime "9:48:56 PDT"]
[Termination "Game drawn by repetition"]

1. d4 {[%clk 0:03:00.9]} 1... Nf6 {[%clk 0:02:58.9]} 2. c4 {[%clk 0:03:00.3]}
2... e6 {[%clk 0:02:59.1]} 3. g3 {[%clk 0:03:00.3]} 3... Bb4+ {[%clk 0:02:59.3]}
4. Bd2 {[%clk 0:02:59.3]} 4... Qe7 {[%clk 0:02:59.9]} 5. Bg2 {[%clk 0:02:59.4]}
5... O-O {[%clk 0:02:59.7]} 6. Nc3 {[%clk 0:02:57.8]} 6... d6 {[%clk 0:02:59.6]}
7. Nf3 {[%clk 0:02:57.2]} 7... e5 {[%clk 0:02:59.9]} 8. O-O {[%clk 0:02:56.9]}
8... Nc6 {[%clk 0:02:59.5]} 9. dxe5 {[%clk 0:02:55.2]} 9... dxe5 {[%clk
0:02:59.4]} 10. Nd5 {[%clk 0:02:54.6]} 10... Nxd5 {[%clk 0:02:59.3]} 11. cxd5
{[%clk 0:02:54.7]} 11... Nd4 {[%clk 0:02:55]} 12. a3 {[%clk 0:02:49.3]} 12...
Bxd2 {[%clk 0:02:54.6]} 13. Qxd2 {[%clk 0:02:49.2]} 13... Nxf3+ {[%clk
0:02:53.8]} 14. exf3 {[%clk 0:02:45.6]} 14... Qd6 {[%clk 0:02:53.4]} 15. Rac1
{[%clk 0:02:42.5]} 15... Bd7 {[%clk 0:02:52.9]} 16. Qb4 {[%clk 0:02:27.3]} 16...
Qxd5 {[%clk 0:02:44.6]} 17. f4 {[%clk 0:02:17.8]} 17... Qe6 {[%clk 0:02:43.4]}
18. fxe5 {[%clk 0:02:05.1]} 18... Qxe5 {[%clk 0:02:39.6]} 19. Rfe1 {[%clk
0:02:04.3]} 19... Qf6 {[%clk 0:02:37.7]} 20. Rxc7 {[%clk 0:02:00.5]} 20... Be6
{[%clk 0:02:33.6]} 21. Rxb7 {[%clk 0:01:57]} 21... Rac8 {[%clk 0:02:32.9]} 22.
Rxa7 {[%clk 0:01:50.1]} 22... Rc2 {[%clk 0:02:32.7]} 23. Qf4 {[%clk 0:01:38.3]}
23... Qxb2 {[%clk 0:02:29.8]} 24. h4 {[%clk 0:01:25.6]} 24... Qb6 {[%clk
0:02:20.6]} 25. Qe3 {[%clk 0:01:17.3]} 25... Qb2 {[%clk 0:01:50.7]} 26. a4
{[%clk 0:01:11.7]} 26... g6 {[%clk 0:01:49.4]} 27. h5 {[%clk 0:01:10.4]} 27...
gxh5 {[%clk 0:01:42.1]} 28. a5 {[%clk 0:01:08]} 28... Rfc8 {[%clk 0:01:08.1]}
29. a6 {[%clk 0:01:01.4]} 29... Rc1 {[%clk 0:00:59.1]} 30. Rxc1 {[%clk
0:00:55.5]} 30... Qxc1+ {[%clk 0:01:00]} 31. Qxc1 {[%clk 0:00:55.1]} 31... Rxc1+
{[%clk 0:01:00.9]} 32. Kh2 {[%clk 0:00:55.5]} 32... Ra1 {[%clk 0:00:59]} 33.
Ra8+ {[%clk 0:00:50.2]} 33... Kg7 {[%clk 0:00:59.1]} 34. a7 {[%clk 0:00:50.7]}
34... Bf5 {[%clk 0:00:48.3]} 35. Bd5 {[%clk 0:00:40.2]} 35... Ra5 {[%clk
0:00:39.5]} 36. Bb7 {[%clk 0:00:34.3]} 36... Kf6 {[%clk 0:00:37.6]} 37. Kg2
{[%clk 0:00:33.7]} 37... Ra1 {[%clk 0:00:35.7]} 38. Kf3 {[%clk 0:00:33.3]} 38...
Bg6 {[%clk 0:00:34.5]} 39. Ke3 {[%clk 0:00:30.8]} 39... Kg5 {[%clk 0:00:34.7]}
40. Kd4 {[%clk 0:00:27]} 40... h4 {[%clk 0:00:32.2]} 41. gxh4+ {[%clk
0:00:25.7]} 41... Kxh4 {[%clk 0:00:33.1]} 42. Kc5 {[%clk 0:00:25]} 42... Kg4
{[%clk 0:00:26.9]} 43. Bd5 {[%clk 0:00:21]} 43... Ra5+ {[%clk 0:00:23.6]} 44.
Kd6 {[%clk 0:00:20.5]} 44... Ra6+ {[%clk 0:00:21.5]} 45. Kc7 {[%clk 0:00:19.1]}
45... Ra5 {[%clk 0:00:20.4]} 46. Bc6 {[%clk 0:00:17.8]} 46... Ra1 {[%clk
0:00:17.8]} 47. Kb6 {[%clk 0:00:16.9]} 47... Rb1+ {[%clk 0:00:14.7]} 48. Kc7
{[%clk 0:00:17.1]} 48... Ra1 {[%clk 0:00:14.3]} 49. Kb6 {[%clk 0:00:12.1]} 49...
Rb1+ {[%clk 0:00:12.7]} 50. Kc7 {[%clk 0:00:10.9]} 50... Ra1 {[%clk 0:00:12.5]}
1/2-1/2

[Event "Early-Titled-Tuesday-Blitz-October-17-2023"]
[Site "Chess.com"]
[Date "2023.10.17"]
[Round "9"]
[White "MikaelyanArman"]
[Black "I_am_Javi"]
[Result "0-1"]
[WhiteElo "2862"]
[BlackElo "2778"]
[TimeControl "180+1"]
[EndTime "9:48:59 PDT"]
[Termination "I_am_Javi won on time"]

1. d4 {[%clk 0:03:00.9]} 1... Nf6 {[%clk 0:02:56.5]} 2. c4 {[%clk 0:03:00.5]}
2... g6 {[%clk 0:02:56.5]} 3. Nc3 {[%clk 0:03:00.6]} 3... d6 {[%clk 0:02:55.7]}
4. e4 {[%clk 0:03:00.5]} 4... Bg7 {[%clk 0:02:55.5]} 5. f4 {[%clk 0:03:00.7]}
5... O-O {[%clk 0:02:52.9]} 6. Nf3 {[%clk 0:03:00.9]} 6... Nbd7 {[%clk
0:02:44.7]} 7. e5 {[%clk 0:02:57.8]} 7... Ne8 {[%clk 0:02:41.6]} 8. h4 {[%clk
0:02:15.3]} 8... c5 {[%clk 0:02:38.2]} 9. h5 {[%clk 0:02:15.8]} 9... cxd4 {[%clk
0:02:28.2]} 10. Qxd4 {[%clk 0:02:16.7]} 10... Qa5 {[%clk 0:02:20.6]} 11. Bd2
{[%clk 0:02:05.1]} 11... dxe5 {[%clk 0:02:05.9]} 12. Qf2 {[%clk 0:02:01.8]}
12... Nd6 {[%clk 0:01:53.1]} 13. hxg6 {[%clk 0:01:57.8]} 13... fxg6 {[%clk
0:01:49.7]} 14. Nd5 {[%clk 0:01:53.8]} 14... Qd8 {[%clk 0:01:44.1]} 15. Qh4
{[%clk 0:01:52.5]} 15... h6 {[%clk 0:01:38.9]} 16. Nxe7+ {[%clk 0:01:02.5]}
16... Kf7 {[%clk 0:01:38.5]} 17. fxe5 {[%clk 0:00:51.6]} 17... Nxe5 {[%clk
0:01:29.8]} 18. Nxe5+ {[%clk 0:00:41.8]} 18... Bxe5 {[%clk 0:01:29.1]} 19. Bd3
{[%clk 0:00:39.9]} 19... Bf6 {[%clk 0:01:05.6]} 20. O-O {[%clk 0:00:23.9]} 20...
Nf5 {[%clk 0:01:00.8]} 21. Nxf5 {[%clk 0:00:10.1]} 21... Bxh4 {[%clk 0:00:44]}
22. Nxh4+ {[%clk 0:00:11]} 22... Kg8 {[%clk 0:00:35.4]} 23. Rxf8+ {[%clk
0:00:10.8]} 23... Qxf8 {[%clk 0:00:33.4]} 24. Nxg6 {[%clk 0:00:07.7]} 24... Qc5+
{[%clk 0:00:25.5]} 25. Kh1 {[%clk 0:00:05.1]} 25... Be6 {[%clk 0:00:20.7]} 26.
Re1 {[%clk 0:00:04.8]} 26... Rd8 {[%clk 0:00:14.3]} 27. Nf4 {[%clk 0:00:03.6]}
27... Bf7 {[%clk 0:00:12.9]} 28. Bc3 {[%clk 0:00:03.2]} 28... Qf2 {[%clk
0:00:08.3]} 29. Rf1 {[%clk 0:00:02.4]} 29... Qh4+ {[%clk 0:00:09]} 30. Kg1
{[%clk 0:00:03]} 30... Qg5 {[%clk 0:00:04.6]} 31. Rf2 {[%clk 0:00:01.7]} 31...
Qc5 {[%clk 0:00:02.9]} 32. Kf1 {[%clk 0:00:02.2]} 32... Qe3 {[%clk 0:00:03.1]}
33. Ne2 {[%clk 0:00:02.3]} 33... Qxd3 {[%clk 0:00:02.8]} 34. Rf3 {[%clk
0:00:02.6]} 34... Qd1+ {[%clk 0:00:03.4]} 35. Kf2 {[%clk 0:00:03.5]} 35... Re8
{[%clk 0:00:03.2]} 36. Rg3+ {[%clk 0:00:04.1]} 36... Kf8 {[%clk 0:00:03.7]} 37.
Bg7+ {[%clk 0:00:04.1]} 37... Ke7 {[%clk 0:00:04]} 38. Bc3 {[%clk 0:00:04]}
38... Kd7 {[%clk 0:00:04.3]} 39. Nd4 {[%clk 0:00:04.1]} 39... Kc8 {[%clk
0:00:03.7]} 40. Rf3 {[%clk 0:00:04.2]} 40... Bxc4 {[%clk 0:00:04.3]} 41. Kg3
{[%clk 0:00:03.7]} 41... Qh1 {[%clk 0:00:04.3]} 42. Nf5 {[%clk 0:00:03.9]} 42...
Rd8 {[%clk 0:00:03.6]} 43. Ne7+ {[%clk 0:00:04.2]} 43... Kb8 {[%clk 0:00:03.9]}
44. Be5+ {[%clk 0:00:04.5]} 44... Ka8 {[%clk 0:00:04.6]} 45. Rc3 {[%clk
0:00:04.9]} 45... Qf1 {[%clk 0:00:04.5]} 46. Kh2 {[%clk 0:00:03.8]} 46... Qe1
{[%clk 0:00:03.7]} 47. Bg3 {[%clk 0:00:03.1]} 47... Qxe7 {[%clk 0:00:04]} 48.
Rxc4 {[%clk 0:00:03.7]} 48... Qe6 {[%clk 0:00:04.4]} 49. Rf4 {[%clk 0:00:03.7]}
49... Re8 {[%clk 0:00:04.9]} 50. a3 {[%clk 0:00:03.7]} 50... Qc6 {[%clk
0:00:05.5]} 51. b4 {[%clk 0:00:04.1]} 51... a6 {[%clk 0:00:05.8]} 52. Rf2 {[%clk
0:00:04.2]} 52... Qd5 {[%clk 0:00:06.2]} 53. Rc2 {[%clk 0:00:04.2]} 53... Qh5+
{[%clk 0:00:06.7]} 54. Kg1 {[%clk 0:00:04.3]} 54... Qd1+ {[%clk 0:00:07.4]} 0-1

[Event "Early-Titled-Tuesday-Blitz-October-17-2023"]
[Site "Chess.com"]
[Date "2023.10.17"]
[Round "9"]
[White "rasmussvane"]
[Black "ActorXu"]
[Result "1/2-1/2"]
[WhiteElo "2980"]
[BlackElo "2800"]
[TimeControl "180+1"]
[EndTime "9:48:59 PDT"]
[Termination "Game drawn by repetition"]

1. Nf3 {[%clk 0:03:00.9]} 1... d5 {[%clk 0:02:59.8]} 2. g3 {[%clk 0:02:57.2]}
2... Nf6 {[%clk 0:03:00.4]} 3. Bg2 {[%clk 0:02:57.6]} 3... e6 {[%clk 0:03:01.1]}
4. O-O {[%clk 0:02:57.9]} 4... Be7 {[%clk 0:03:01.8]} 5. c4 {[%clk 0:02:58.3]}
5... O-O {[%clk 0:03:02.4]} 6. b3 {[%clk 0:02:58.5]} 6... c5 {[%clk 0:03:01.5]}
7. cxd5 {[%clk 0:02:58.4]} 7... Nxd5 {[%clk 0:03:01.1]} 8. Nc3 {[%clk
0:02:58.4]} 8... Bf6 {[%clk 0:02:49.4]} 9. Bb2 {[%clk 0:02:58]} 9... b6 {[%clk
0:02:41.9]} 10. Qc2 {[%clk 0:02:52.7]} 10... Bb7 {[%clk 0:02:32.6]} 11. Rad1
{[%clk 0:02:39.4]} 11... Nxc3 {[%clk 0:01:53.6]} 12. Bxc3 {[%clk 0:02:03.7]}
12... Nc6 {[%clk 0:01:53.5]} 13. e3 {[%clk 0:01:22.4]} 13... Rc8 {[%clk
0:01:49.2]} 14. Qb2 {[%clk 0:01:20]} 14... Bxc3 {[%clk 0:01:48.8]} 15. dxc3
{[%clk 0:01:14.2]} 15... Qe7 {[%clk 0:01:39.2]} 16. c4 {[%clk 0:01:10.5]} 16...
Rfd8 {[%clk 0:01:38.9]} 17. h3 {[%clk 0:01:08.8]} 17... Rxd1 {[%clk 0:01:13.5]}
18. Rxd1 {[%clk 0:01:09.7]} 18... Rd8 {[%clk 0:01:14.1]} 19. Rxd8+ {[%clk
0:01:09.2]} 19... Qxd8 {[%clk 0:01:14.8]} 20. Ne5 {[%clk 0:00:53.6]} 20... Qd6
{[%clk 0:01:01.1]} 21. Nxc6 {[%clk 0:00:49]} 21... Bxc6 {[%clk 0:01:01.2]} 22.
Bxc6 {[%clk 0:00:49.6]} 22... Qxc6 {[%clk 0:01:01.5]} 23. Qe5 {[%clk 0:00:50.1]}
23... Qb7 {[%clk 0:00:46.2]} 24. Qd6 {[%clk 0:00:49.6]} 24... g6 {[%clk
0:00:45.6]} 25. a3 {[%clk 0:00:42.2]} 25... Qa6 {[%clk 0:00:39.6]} 26. a4 {[%clk
0:00:35.5]} 26... Qa5 {[%clk 0:00:37.2]} 27. Qd3 {[%clk 0:00:27.1]} 27... Kg7
{[%clk 0:00:31.9]} 28. Kg2 {[%clk 0:00:27.2]} 28... Qb4 {[%clk 0:00:31.6]} 29.
Qc2 {[%clk 0:00:27.4]} 29... h5 {[%clk 0:00:30.1]} 30. Qb2+ {[%clk 0:00:27.2]}
30... Kg8 {[%clk 0:00:30.1]} 31. g4 {[%clk 0:00:25.4]} 31... hxg4 {[%clk
0:00:29.8]} 32. hxg4 {[%clk 0:00:26.3]} 32... Qe1 {[%clk 0:00:27.4]} 33. Qc2
{[%clk 0:00:25.3]} 33... Qb4 {[%clk 0:00:25.8]} 34. Qd3 {[%clk 0:00:25.6]} 34...
Kg7 {[%clk 0:00:24.9]} 35. Qd1 {[%clk 0:00:21.2]} 35... Qc3 {[%clk 0:00:24.2]}
36. Kf3 {[%clk 0:00:19.7]} 36... g5 {[%clk 0:00:23.4]} 37. Kg2 {[%clk 0:00:20]}
37... Kg6 {[%clk 0:00:21.6]} 38. Qb1+ {[%clk 0:00:20]} 38... Kg7 {[%clk
0:00:22.1]} 39. Qd1 {[%clk 0:00:20]} 39... Kg6 {[%clk 0:00:22.5]} 40. Qb1+
{[%clk 0:00:20.2]} 40... Kg7 {[%clk 0:00:23.1]} 41. Kf3 {[%clk 0:00:20.5]} 41...
a5 {[%clk 0:00:22.1]} 42. Kg2 {[%clk 0:00:20.4]} 42... Kf6 {[%clk 0:00:20.9]}
43. Qd1 {[%clk 0:00:20.7]} 43... Kg7 {[%clk 0:00:21.3]} 44. Qb1 {[%clk
0:00:20.2]} 44... Kf6 {[%clk 0:00:21.7]} 45. Kf3 {[%clk 0:00:20.2]} 45... Kg7
{[%clk 0:00:22]} 46. Ke2 {[%clk 0:00:20]} 46... Kf6 {[%clk 0:00:22.1]} 47. Qd1
{[%clk 0:00:19.1]} 47... Kg7 {[%clk 0:00:22.2]} 48. Qd3 {[%clk 0:00:19.3]} 48...
Qxd3+ {[%clk 0:00:16.4]} 49. Kxd3 {[%clk 0:00:20.2]} 49... f5 {[%clk 0:00:16.6]}
50. f3 {[%clk 0:00:10.5]} 50... Kf6 {[%clk 0:00:15.1]} 51. Ke2 {[%clk
0:00:10.3]} 51... Ke5 {[%clk 0:00:07]} 52. Kd3 {[%clk 0:00:08.3]} 52... Kf6
{[%clk 0:00:07.4]} 53. Ke2 {[%clk 0:00:08.1]} 53... Ke5 {[%clk 0:00:07.9]} 54.
Kd3 {[%clk 0:00:05.9]} 54... Kf6 {[%clk 0:00:08.2]} 1/2-1/2

[Event "Early-Titled-Tuesday-Blitz-October-17-2023"]
[Site "Chess.com"]
[Date "2023.10.17"]
[Round "9"]
[White "ChesscularGodofchess"]
[Black "topin8"]
[Result "0-1"]
[WhiteElo "2227"]
[BlackElo "2502"]
[TimeControl "180+1"]
[EndTime "9:49:01 PDT"]
[Termination "topin8 won on time"]

1. d4 {[%clk 0:03:00.9]} 1... Nf6 {[%clk 0:02:59.7]} 2. Nf3 {[%clk 0:03:01.2]}
2... c5 {[%clk 0:02:59.1]} 3. dxc5 {[%clk 0:03:00.4]} 3... Na6 {[%clk
0:02:58.7]} 4. a3 {[%clk 0:02:58.4]} 4... Nxc5 {[%clk 0:02:58.8]} 5. b4 {[%clk
0:02:58.8]} 5... Na6 {[%clk 0:02:59.3]} 6. Bb2 {[%clk 0:02:59.1]} 6... d6 {[%clk
0:02:50.3]} 7. Nbd2 {[%clk 0:02:58.4]} 7... e5 {[%clk 0:02:45]} 8. e4 {[%clk
0:02:57.9]} 8... Be7 {[%clk 0:02:45.1]} 9. Bd3 {[%clk 0:02:36.8]} 9... O-O
{[%clk 0:02:44.6]} 10. O-O {[%clk 0:02:36]} 10... Nc7 {[%clk 0:02:19.2]} 11. c4
{[%clk 0:02:26.6]} 11... Ne6 {[%clk 0:02:15.1]} 12. Rc1 {[%clk 0:02:25.9]} 12...
Nf4 {[%clk 0:02:00.4]} 13. Qc2 {[%clk 0:02:24.5]} 13... b6 {[%clk 0:01:46.7]}
14. Rfd1 {[%clk 0:02:23.7]} 14... Nxd3 {[%clk 0:01:44.2]} 15. Qxd3 {[%clk
0:02:23.5]} 15... Bb7 {[%clk 0:01:41.7]} 16. Nh4 {[%clk 0:02:03.3]} 16... g6
{[%clk 0:01:32.8]} 17. Nhf3 {[%clk 0:01:38.8]} 17... Rc8 {[%clk 0:01:20.3]} 18.
Ne1 {[%clk 0:01:37.9]} 18... Rc7 {[%clk 0:01:15.6]} 19. f3 {[%clk 0:01:37.5]}
19... Qc8 {[%clk 0:00:57.9]} 20. Nc2 {[%clk 0:01:36.5]} 20... Nh5 {[%clk
0:00:53.6]} 21. g3 {[%clk 0:01:33.2]} 21... Qh3 {[%clk 0:00:50.5]} 22. Qe2
{[%clk 0:01:31.1]} 22... f5 {[%clk 0:00:49.8]} 23. Qg2 {[%clk 0:01:27.4]} 23...
Qxg2+ {[%clk 0:00:46.9]} 24. Kxg2 {[%clk 0:01:28.3]} 24... fxe4 {[%clk
0:00:44.6]} 25. Nxe4 {[%clk 0:01:28.3]} 25... Bxe4 {[%clk 0:00:35.2]} 26. fxe4
{[%clk 0:01:29.2]} 26... Rxc4 {[%clk 0:00:35.6]} 27. Re1 {[%clk 0:00:40.5]}
27... Bg5 {[%clk 0:00:34.7]} 28. Ne3 {[%clk 0:00:35.5]} 28... Rxe4 {[%clk
0:00:29.9]} 29. Nd5 {[%clk 0:00:25.2]} 29... Rxe1 {[%clk 0:00:28.7]} 30. Rxe1
{[%clk 0:00:26.1]} 30... Rc8 {[%clk 0:00:29]} 31. h4 {[%clk 0:00:20.5]} 31...
Rc2+ {[%clk 0:00:17.9]} 32. Kh3 {[%clk 0:00:19.5]} 32... Rxb2 {[%clk 0:00:11.4]}
33. hxg5 {[%clk 0:00:19.8]} 33... Rb3 {[%clk 0:00:11.6]} 34. Nf6+ {[%clk
0:00:11.2]} 34... Nxf6 {[%clk 0:00:09.5]} 35. gxf6 {[%clk 0:00:12.1]} 35... Rd3
{[%clk 0:00:08.1]} 36. Kg4 {[%clk 0:00:10.8]} 36... h6 {[%clk 0:00:05.6]} 37.
Rc1 {[%clk 0:00:10.3]} 37... Kf7 {[%clk 0:00:05.2]} 38. Rc7+ {[%clk 0:00:10.3]}
38... Kxf6 {[%clk 0:00:05.8]} 39. Rxa7 {[%clk 0:00:11]} 39... h5+ {[%clk
0:00:06]} 40. Kh4 {[%clk 0:00:10.5]} 40... e4 {[%clk 0:00:06.2]} 41. Ra6 {[%clk
0:00:09.7]} 41... Kf5 {[%clk 0:00:05]} 42. Rxb6 {[%clk 0:00:08.7]} 42... g5+
{[%clk 0:00:05.1]} 43. Kxh5 {[%clk 0:00:08.4]} 43... Rxg3 {[%clk 0:00:05.7]} 44.
Kh6 {[%clk 0:00:08.8]} 44... d5 {[%clk 0:00:05.3]} 45. Kg7 {[%clk 0:00:07.5]}
45... Rxa3 {[%clk 0:00:04.2]} 46. Rf6+ {[%clk 0:00:06.8]} 46... Ke5 {[%clk
0:00:04.2]} 47. Kg6 {[%clk 0:00:05.6]} 47... g4 {[%clk 0:00:03.8]} 48. Rf5+
{[%clk 0:00:04.4]} 48... Kd4 {[%clk 0:00:04]} 49. b5 {[%clk 0:00:04]} 49... Rb3
{[%clk 0:00:04.3]} 50. Kg5 {[%clk 0:00:01.8]} 50... Rxb5 {[%clk 0:00:04.5]} 51.
Kxg4 {[%clk 0:00:02.2]} 51... Rb1 {[%clk 0:00:04.7]} 0-1